fUSD/lending_fUSD_20250606
["ID","MTS","AMOUNT","RATE_DAILY","PERIOD"]
[364784177,1749241839069,-150.0,0.0002588,2]
[364784178,1749241839078,-250.0,0.00025935,2]
[364784179,1749241839087,-164.01,0.00025975,2]
[364784180,1749241839096,-152.53,0.00026085,2]
[364784181,1749241839106,-6150.91,0.00026094,2]
[364784182,1749241839115,-151.0,0.00026095,7]
[364784183,1749241839124,-151.0,0.00026095,7]
[364784184,1749241839133,-152.77283,0.00026095,7]
[364784185,1749241839142,-151.0,0.00026095,7]
[364784186,1749241839151,-151.0,0.00026095,7]
[364784188,1749241839160,-151.0,0.00026095,7]
[364784190,1749241839169,-151.0,0.00026095,7]
[364784192,1749241839179,-298.17,0.00026167,30]
[364784194,1749241839188,-3322.83,0.00026184,2]
[364784196,1749241839197,-303.96,0.00026184,2]
[364784198,1749241839206,-302.06,0.00026184,2]
[364784200,1749241839216,-301.71,0.00026184,2]
[364784202,1749241839225,-303.64,0.00026184,2]
[364784204,1749241839234,-302.37,0.00026184,2]
[364784206,1749241839243,-303.08,0.00026184,2]
[364784208,1749241839252,-303.76,0.00026184,2]
[364784210,1749241839262,-304.54,0.00026184,2]
[364784212,1749241839271,-303.03,0.00026184,2]
[364784214,1749241839280,-301.66,0.00026184,2]
[364784216,1749241839289,-300.01,0.00026184,2]
[364784218,1749241839299,-304.11,0.00026184,2]
[364784220,1749241839308,-207.0,0.0002629,2]
[364784222,1749241839318,-200.0,0.00026305,2]
[364784224,1749241839327,-551.64681967,0.00026312,2]
[364784226,1749241839336,-933.1520387,0.00026314,14]
[364784228,1749241839346,-206.0,0.00026339,5]
[364784230,1749241839355,-250.0,0.00026373,2]
[364784232,1749241839365,-15801.82443166,0.000264,2]
[364784234,1749241839374,-1000.0,0.00026428,2]
[364784236,1749241839383,-1574.92,0.00026428,2]
[364784238,1749241839393,-1000.0,0.00026428,2]
[364784240,1749241839402,-192.46,0.00026459,2]
[364784242,1749241839412,-8027.43,0.00026459,2]
[364784244,1749241839422,-150.0,0.00026482,2]
[364784246,1749241839433,-207.4,0.0002654,2]
[364784248,1749241839442,-1957.856,0.0002654,2]
[364784250,1749241839452,-151.0,0.00026566,2]
[364784252,1749241839462,-151.0,0.00026566,2]
[364784254,1749241839471,-800.0,0.00026566,2]
[364784256,1749241839480,-500.0,0.00026566,2]
[364784258,1749241839490,-1000.0,0.00026566,2]
[364784260,1749241839499,-800.0,0.00026566,2]
[364784262,1749241839509,-500.0,0.00026566,2]
[364784264,1749241839518,-800.0,0.00026566,2]
[364784266,1749241839527,-500.0,0.00026566,2]
[364784268,1749241839536,-668.65185757,0.00026566,2]
[364784270,1749241839546,-800.0,0.00026566,2]
[364784272,1749241839556,-500.0,0.00026566,2]
[364784274,1749241839565,-500.0,0.00026566,2]
[364784276,1749241839575,-800.0,0.00026566,2]
[364784278,1749241839585,-500.0,0.00026566,2]
[364784280,1749241839594,-800.0,0.00026566,2]
[364784282,1749241839604,-500.0,0.00026566,2]
[364784284,1749241839613,-800.0,0.00026566,2]
[364784286,1749241839623,-800.0,0.00026566,2]
[364784288,1749241839632,-500.0,0.00026566,2]
[364784290,1749241839642,-594.03643909,0.00026566,2]
[364784292,1749241839651,-500.0,0.00026566,2]
[364784294,1749241839661,-500.0,0.00026566,2]
[364784296,1749241839671,-500.0,0.00026566,2]
[364784298,1749241839680,-500.0,0.00026566,2]
[364784300,1749241839690,-500.0,0.00026566,2]
[364784302,1749241839699,-500.0,0.00026566,2]
[364784304,1749241839709,-500.0,0.00026566,2]
[364784306,1749241839718,-500.0,0.00026566,2]
[364784308,1749241839728,-500.0,0.00026566,2]
[364784310,1749241839737,-222.47485641,0.00026566,2]
[364784312,1749241839747,-151.0,0.00026566,2]
[364784314,1749241839756,-151.0,0.00026566,2]
[364784315,1749241839769,-300.0,0.00026566,2]
[364784316,1749241839779,-300.0,0.00026566,2]
[364784317,1749241839789,-300.0,0.00026566,2]
[364784318,1749241839799,-300.0,0.00026566,2]
[364784319,1749241839808,-300.0,0.00026566,2]
[364784321,1749241839818,-300.0,0.00026566,2]
[364784322,1749241839827,-300.0,0.00026566,2]
[364784323,1749241839837,-300.0,0.00026566,2]
[364784325,1749241839848,-320.58711585,0.00026566,2]
[364784327,1749241839857,-328.51343847,0.00026572,2]
[364784329,1749241839867,-23900.0,0.00026582,2]
[364784331,1749241839876,-2030.296672,0.00026595,2]
[364784333,1749241839886,-150.0,0.00026614,7]
[364784335,1749241839896,-301.44,0.00026615,2]
[364784337,1749241839905,-300.76,0.00026615,2]
[364784339,1749241839914,-302.6,0.00026615,2]
[364784341,1749241839924,-301.12,0.00026615,2]
[364784343,1749241839934,-303.15,0.00026615,2]
[364784345,1749241839943,-151.0,0.00026621,2]
[364784347,1749241839953,-2105.41764886,0.0002665,2]
[364784349,1749241839962,-151.0,0.00026676,2]
[364784351,1749241839972,-154.2,0.00026676,2]
[364784353,1749241839981,-1979.95864843,0.00026705,2]
[364784355,1749241839990,-984.41,0.00026774,2]
[364784357,1749241840000,-207.0,0.0002679,2]
[364784359,1749241840009,-900.0,0.000268,9]
[364784361,1749241840019,-163.85,0.00026837,2]
[364784363,1749241840029,-59874.75,0.00026849,2]
[364784365,1749241840039,-933.1520387,0.00026866,16]
[364784367,1749241840048,-1800.0,0.000269,9]
[364784369,1749241840057,-2200.0,0.000269,9]
[364784371,1749241840066,-15177.3089,0.00027,2]
[364784373,1749241840076,-50000.08640797,0.00027,2]
[364784375,1749241840085,-152.53,0.0002709,2]
[364784377,1749241840095,-18627.0,0.000271,2]
[364784379,1749241840104,-500.0,0.00027123,2]
[364784381,1749241840113,-1000.0,0.0002723,2]
[364784383,1749241840123,-500.0,0.0002727,2]
[364784385,1749241840132,-2099.41867,0.0002729,2]
[364784387,1749241840142,-5000.0,0.00027297,2]
[364784389,1749241840151,-833.328504,0.00027297,2]
[364784391,1749241840161,-193.66689883,0.00027297,5]
[364784393,1749241840171,-341.7159634,0.00027297,2]
[364784395,1749241840180,-162.53229862,0.00027297,2]
[364784397,1749241840189,-12379.31756151,0.00027297,2]
[364784399,1749241840198,-1927.68428766,0.00027297,2]
[364784401,1749241840208,-207.0,0.000273,2]
[364784403,1749241840217,-1152.0,0.00027339,2]
[364784405,1749241840227,-504.02094777,0.00027373,2]
[364784407,1749241840236,-153.0,0.00027375,2]
[364784409,1749241840247,-153.0,0.00027375,2]
[364784411,1749241840256,-153.0,0.00027375,2]
[364784413,1749241840266,-300.0,0.00027396,10]
[364784415,1749241840276,-666.0,0.00027396,2]
[364784417,1749241840287,-1463.594543,0.00027397,5]
[364784419,1749241840296,-414.58888859,0.00027397,5]
[364784421,1749241840306,-480.0,0.00027397,5]
[364784423,1749241840315,-1652.978713,0.00027397,5]
[364784425,1749241840324,-156.813701,0.00027397,5]
[364784427,1749241840334,-480.0,0.00027397,5]
[364784429,1749241840343,-480.0,0.00027397,5]
[364784431,1749241840352,-480.0,0.00027397,5]
[364784432,1749241840362,-480.0,0.00027397,5]
[364784433,1749241840371,-480.0,0.00027397,5]
[364784434,1749241840380,-480.0,0.00027397,5]
[364784435,1749241840390,-480.0,0.00027397,5]
[364784436,1749241840400,-480.0,0.00027397,5]
[364784437,1749241840409,-480.0,0.00027397,5]
[364784438,1749241840419,-480.0,0.00027397,5]
[364784439,1749241840428,-480.0,0.00027397,5]
[364784440,1749241840438,-480.0,0.00027397,5]
[364784441,1749241840448,-480.0,0.00027397,5]
[364784442,1749241840457,-480.0,0.00027397,5]
[364784443,1749241840466,-480.0,0.00027397,5]
[364784445,1749241840476,-480.0,0.00027397,5]
[364784447,1749241840485,-480.0,0.00027397,5]
[364784449,1749241840494,-480.0,0.00027397,5]
[364784451,1749241840503,-500.0,0.00027397,5]
[364784452,1749241840512,-480.0,0.00027397,5]
[364784453,1749241840523,-480.0,0.00027397,5]
[364784454,1749241840532,-480.0,0.00027397,5]
[364784455,1749241840542,-480.0,0.00027397,5]
[364784456,1749241840552,-480.0,0.00027397,5]
[364784457,1749241840561,-480.0,0.00027397,5]
[364784458,1749241840571,-626.84067131,0.00027397,5]
[364784459,1749241840580,-480.0,0.00027397,5]
[364784460,1749241840589,-480.0,0.00027397,5]
[364784461,1749241840599,-480.0,0.00027397,5]
[364784462,1749241840608,-480.0,0.00027397,5]
[364784463,1749241840618,-171.00455755,0.00027397,5]
[364784464,1749241840627,-318.82439043,0.00027397,5]
[364784465,1749241840638,-480.0,0.00027397,5]
[364784466,1749241840648,-480.0,0.00027397,5]
[364784467,1749241840657,-650.7,0.00027397,2]
[364784468,1749241840667,-480.0,0.00027397,5]
[364784469,1749241840677,-480.0,0.00027397,5]
[364784470,1749241840688,-480.0,0.00027397,5]
[364784471,1749241840697,-480.0,0.00027397,5]
[364784472,1749241840706,-480.0,0.00027397,5]
[364784473,1749241840716,-480.0,0.00027397,5]
[364784474,1749241840725,-1150.67,0.00027397,5]
[364784475,1749241840735,-849.58,0.00027397,5]
[364784476,1749241840744,-480.0,0.00027397,5]
[364784477,1749241840753,-480.0,0.00027397,5]
[364784478,1749241840764,-481.92198637,0.00027397,5]
[364784479,1749241840774,-579.78207384,0.00027397,5]
[364784480,1749241840783,-600.0,0.00027397,30]
[364784481,1749241840794,-1762.69,0.00027397,5]
[364784482,1749241840804,-480.0,0.00027397,5]
[364784483,1749241840814,-480.0,0.00027397,5]
[364784484,1749241840824,-480.0,0.00027397,5]
[364784485,1749241840833,-521.79,0.00027397,5]
[364784486,1749241840843,-480.0,0.00027397,5]
[364784487,1749241840852,-480.0,0.00027397,5]
[364784488,1749241840861,-480.0,0.00027397,5]
[364784489,1749241840871,-480.0,0.00027397,5]
[364784490,1749241840880,-2000.0,0.00027397,5]
[364784491,1749241840890,-480.0,0.00027397,5]
[364784492,1749241840901,-480.0,0.00027397,5]
[364784493,1749241840911,-480.0,0.00027397,5]
[364784494,1749241840921,-480.0,0.00027397,5]
[364784495,1749241840930,-480.0,0.00027397,5]
[364784496,1749241840940,-480.0,0.00027397,5]
[364784497,1749241840949,-480.0,0.00027397,5]
[364784498,1749241840959,-1155.6,0.00027397,5]
[364784499,1749241840969,-480.0,0.00027397,5]
[364784500,1749241840979,-480.0,0.00027397,5]
[364784501,1749241840989,-480.0,0.00027397,5]
[364784502,1749241840999,-1160.86,0.00027397,5]
[364784503,1749241841008,-480.0,0.00027397,5]
[364784504,1749241841018,-169.38720944,0.00027397,5]
[364784505,1749241841027,-460.0,0.00027397,5]
[364784506,1749241841037,-480.0,0.00027397,5]
[364784507,1749241841046,-519.58,0.00027397,5]
[364784508,1749241841056,-480.0,0.00027397,5]
[364784509,1749241841065,-480.0,0.00027397,5]
[364784510,1749241841074,-480.0,0.00027397,5]
[364784511,1749241841083,-552.94,0.00027397,5]
[364784512,1749241841093,-225.42699899,0.00027397,5]
[364784513,1749241841102,-950.71,0.00027397,5]
[364784514,1749241841112,-480.0,0.00027397,5]
[364784515,1749241841121,-480.0,0.00027397,5]
[364784516,1749241841131,-480.0,0.00027397,5]
[364784517,1749241841140,-480.0,0.00027397,5]
[364784518,1749241841149,-675.25,0.00027397,5]
[364784519,1749241841159,-480.0,0.00027397,5]
[364784520,1749241841168,-885.57,0.00027397,5]
[364784521,1749241841178,-480.0,0.00027397,5]
[364784522,1749241841187,-480.0,0.00027397,5]
[364784523,1749241841196,-480.0,0.00027397,5]
[364784524,1749241841206,-666.72,0.00027397,5]
[364784525,1749241841215,-480.0,0.00027397,5]
[364784526,1749241841224,-480.0,0.00027397,5]
[364784527,1749241841234,-480.0,0.00027397,5]
[364784528,1749241841243,-298.05959272,0.00027397,5]
[364784529,1749241841253,-480.0,0.00027397,5]
[364784530,1749241841262,-480.0,0.00027397,5]
[364784531,1749241841271,-1073.7,0.00027397,5]
[364784532,1749241841281,-480.0,0.00027397,5]
[364784533,1749241841291,-480.0,0.00027397,5]
[364784534,1749241841300,-519.6,0.00027397,5]
[364784535,1749241841310,-480.0,0.00027397,5]
[364784536,1749241841320,-485.83058293,0.00027397,5]
[364784537,1749241841329,-511.45,0.00027397,5]
[364784538,1749241841339,-480.0,0.00027397,5]
[364784539,1749241841349,-480.0,0.00027397,5]
[364784540,1749241841431,-499.44,0.00027397,5]
[364784541,1749241841442,-480.0,0.00027397,5]
[364784542,1749241841451,-803.55,0.00027397,5]
[364784543,1749241841460,-480.0,0.00027397,5]
[364784544,1749241841470,-500.0,0.00027397,2]
[364784545,1749241841480,-480.0,0.00027397,5]
[364784546,1749241841491,-480.0,0.00027397,5]
[364784547,1749241841501,-579.61,0.00027397,5]
[364784548,1749241841511,-480.0,0.00027397,5]
[364784549,1749241841520,-370.0,0.00027397,5]
[364784550,1749241841530,-480.0,0.00027397,5]
[364784551,1749241841539,-480.0,0.00027397,5]
[364784552,1749241841548,-480.0,0.00027397,5]
[364784553,1749241841557,-607.44,0.00027397,5]
[364784554,1749241841566,-480.0,0.00027397,5]
[364784555,1749241841576,-575.01,0.00027397,5]
[364784556,1749241841585,-883.54,0.00027397,5]
[364784557,1749241841594,-838.95,0.00027397,5]
[364784558,1749241841603,-480.0,0.00027397,5]
[364784559,1749241841614,-480.0,0.00027397,5]
[364784560,1749241841623,-480.0,0.00027397,5]
[364784561,1749241841632,-480.0,0.00027397,5]
[364784562,1749241841641,-480.0,0.00027397,5]
[364784563,1749241841650,-732.08,0.00027397,5]
[364784564,1749241841659,-646.34,0.00027397,5]
[364784565,1749241841668,-480.0,0.00027397,5]
[364784566,1749241841677,-480.0,0.00027397,5]
[364784567,1749241841686,-574.86,0.00027397,5]
[364784568,1749241841695,-480.0,0.00027397,5]
[364784569,1749241841703,-480.0,0.00027397,5]
[364784570,1749241841712,-480.0,0.00027397,5]
[364784571,1749241841722,-480.0,0.00027397,5]
[364784572,1749241841731,-480.0,0.00027397,5]
[364784573,1749241841739,-480.0,0.00027397,5]
[364784574,1749241841748,-480.0,0.00027397,5]
[364784575,1749241841757,-500.0,0.00027397,5]
[364784576,1749241841770,-507.31678381,0.00027397,5]
[364784577,1749241841779,-480.0,0.00027397,5]
[364784578,1749241841789,-480.0,0.00027397,5]
[364784579,1749241841799,-480.0,0.00027397,5]
[364784580,1749241841808,-518.75,0.00027397,5]
[364784581,1749241841819,-951.19,0.00027397,5]
[364784582,1749241841829,-779.94,0.00027397,5]
[364784583,1749241841838,-480.0,0.00027397,5]
[364784584,1749241841848,-480.0,0.00027397,5]
[364784585,1749241841857,-689.83,0.00027397,5]
[364784586,1749241841866,-1012.85,0.00027397,5]
[364784587,1749241841875,-482.38,0.00027397,5]
[364784588,1749241841884,-480.0,0.00027397,5]
[364784589,1749241841893,-480.0,0.00027397,5]
[364784590,1749241841902,-480.0,0.00027397,5]
[364784591,1749241841912,-713.99,0.00027397,5]
[364784592,1749241841923,-480.0,0.00027397,5]
[364784593,1749241841932,-549.54,0.00027397,5]
[364784594,1749241841942,-480.0,0.00027397,5]
[364784595,1749241841951,-480.0,0.00027397,5]
[364784596,1749241841962,-480.0,0.00027397,5]
[364784597,1749241841971,-480.0,0.00027397,5]
[364784598,1749241841981,-891.22,0.00027397,5]
[364784599,1749241841990,-1010.55,0.00027397,5]
[364784600,1749241841999,-480.0,0.00027397,5]
[364784601,1749241842008,-580.5,0.00027397,5]
[364784602,1749241842017,-480.0,0.00027397,5]
[364784603,1749241842026,-480.0,0.00027397,5]
[364784604,1749241842036,-480.0,0.00027397,5]
[364784605,1749241842045,-480.0,0.00027397,5]
[364784606,1749241842054,-480.0,0.00027397,5]
[364784607,1749241842065,-480.0,0.00027397,5]
[364784608,1749241842075,-787.11,0.00027397,5]
[364784609,1749241842084,-480.0,0.00027397,5]
[364784610,1749241842093,-480.0,0.00027397,5]
[364784611,1749241842102,-480.0,0.00027397,5]
[364784612,1749241842112,-801.53,0.00027397,5]
[364784613,1749241842121,-480.0,0.00027397,5]
[364784614,1749241842130,-318.88274585,0.00027397,5]
[364784615,1749241842140,-547.92,0.00027397,5]
[364784616,1749241842150,-480.0,0.00027397,5]
[364784617,1749241842159,-480.0,0.00027397,5]
[364784618,1749241842168,-788.62,0.00027397,5]
[364784619,1749241842177,-163.67194531,0.00027397,5]
[364784620,1749241842186,-480.0,0.00027397,5]
[364784621,1749241842196,-480.0,0.00027397,5]
[364784622,1749241842205,-823.95,0.00027397,5]
[364784623,1749241842214,-540.55,0.00027397,5]
[364784624,1749241842224,-1667.28,0.00027397,5]
[364784625,1749241842233,-480.0,0.00027397,5]
[364784626,1749241842243,-480.0,0.00027397,5]
[364784627,1749241842252,-708.27,0.00027397,5]
[364784628,1749241842261,-298.02,0.00027397,5]
[364784629,1749241842270,-815.35,0.00027397,5]
[364784630,1749241842279,-480.0,0.00027397,5]
[364784631,1749241842289,-1322.04,0.00027397,5]
[364784632,1749241842298,-788.51,0.00027397,5]
[364784633,1749241842307,-480.0,0.00027397,5]
[364784634,1749241842317,-1588.19,0.00027397,5]
[364784635,1749241842327,-894.23,0.00027397,5]
[364784636,1749241842336,-493.66,0.00027397,5]
[364784637,1749241842345,-627.73,0.00027397,5]
[364784638,1749241842355,-907.31,0.00027397,5]
[364784639,1749241842364,-1000.0,0.00027397,5]
[364784640,1749241842374,-543.94,0.00027397,5]
[364784641,1749241842383,-480.0,0.00027397,5]
[364784642,1749241842394,-480.0,0.00027397,5]
[364784643,1749241842404,-480.0,0.00027397,5]
[364784644,1749241842413,-480.0,0.00027397,5]
[364784645,1749241842422,-907.9,0.00027397,5]
[364784646,1749241842432,-480.0,0.00027397,5]
[364784647,1749241842441,-480.0,0.00027397,5]
[364784648,1749241842450,-480.0,0.00027397,2]
[364784649,1749241842459,-480.0,0.00027397,5]
[364784650,1749241842467,-478.87055813,0.00027397,5]
[364784651,1749241842476,-480.0,0.00027397,5]
[364784652,1749241842485,-480.0,0.00027397,5]
[364784653,1749241842494,-612.39,0.00027397,5]
[364784654,1749241842503,-908.3,0.00027397,5]
[364784655,1749241842512,-480.0,0.00027397,5]
[364784656,1749241842521,-480.0,0.00027397,5]
[364784657,1749241842530,-480.0,0.00027397,5]
[364784658,1749241842539,-156.813701,0.00027397,5]
[364784659,1749241842547,-480.0,0.00027397,5]
[364784660,1749241842556,-522.17166458,0.00027397,5]
[364784661,1749241842566,-480.0,0.00027397,5]
[364784662,1749241842575,-480.0,0.00027397,5]
[364784663,1749241842585,-480.0,0.00027397,5]
[364784664,1749241842594,-432.83232428,0.00027397,5]
[364784665,1749241842604,-3267.11,0.00027397,5]
[364784666,1749241842613,-480.0,0.00027397,5]
[364784667,1749241842622,-778.17,0.00027397,5]
[364784668,1749241842633,-948.36,0.00027397,5]
[364784669,1749241842642,-245.92635034,0.00027397,5]
[364784670,1749241842651,-492.8597847,0.00027397,5]
[364784671,1749241842663,-480.0,0.00027397,5]
[364784672,1749241842673,-480.0,0.00027397,5]
[364784673,1749241842683,-1438.85,0.00027397,5]
[364784674,1749241842692,-300.0,0.00027397,5]
[364784675,1749241842702,-480.0,0.00027397,5]
[364784676,1749241842712,-485.50042967,0.00027397,5]
[364784677,1749241842721,-150.270793,0.00027397,5]
[364784678,1749241842730,-542.99,0.00027397,5]
[364784679,1749241842739,-555.32,0.00027397,5]
[364784680,1749241842749,-480.0,0.00027397,5]
[364784681,1749241842758,-480.0,0.00027397,5]
[364784682,1749241842770,-480.0,0.00027397,5]
[364784683,1749241842779,-1535.87,0.00027397,5]
[364784684,1749241842789,-480.0,0.00027397,5]
[364784685,1749241842798,-480.0,0.00027397,5]
[364784686,1749241842808,-429.93963937,0.00027397,5]
[364784687,1749241842817,-1296.25,0.00027397,5]
[364784688,1749241842826,-480.0,0.00027397,5]
[364784689,1749241842835,-516.58,0.00027397,5]
[364784690,1749241842845,-480.0,0.00027397,5]
[364784691,1749241842854,-538.08,0.00027397,5]
[364784692,1749241842863,-1575.78,0.00027397,5]
[364784693,1749241842872,-480.0,0.00027397,5]
[364784694,1749241842882,-480.0,0.00027397,5]
[364784695,1749241842891,-483.35347419,0.00027397,5]
[364784696,1749241842902,-480.0,0.00027397,5]
[364784697,1749241842912,-480.64535471,0.00027397,5]
[364784698,1749241842921,-970.72,0.00027397,5]
[364784699,1749241842931,-480.0,0.00027397,5]
[364784700,1749241842940,-2734.62,0.00027397,5]
[364784701,1749241842949,-1837.71,0.00027397,5]
[364784702,1749241842959,-480.0,0.00027397,5]
[364784703,1749241842968,-480.0,0.00027397,5]
[364784704,1749241842977,-480.0,0.00027397,5]
[364784705,1749241842986,-480.0,0.00027397,5]
[364784706,1749241842996,-480.0,0.00027397,5]
[364784707,1749241843006,-2758.24,0.00027397,5]
[364784708,1749241843015,-454.9459083,0.00027397,5]
[364784709,1749241843025,-4609.26,0.00027397,5]
[364784710,1749241843036,-480.0,0.00027397,5]
[364784711,1749241843045,-480.0,0.00027397,5]
[364784712,1749241843054,-819.99,0.00027397,5]
[364784713,1749241843063,-480.0,0.00027397,5]
[364784714,1749241843073,-1046.07,0.00027397,5]
[364784715,1749241843083,-480.0,0.00027397,5]
[364784716,1749241843092,-480.0,0.00027397,5]
[364784717,1749241843101,-3979.76,0.00027397,5]
[364784718,1749241843110,-902.21,0.00027397,5]
[364784719,1749241843121,-480.0,0.00027397,5]
[364784720,1749241843131,-480.0,0.00027397,5]
[364784721,1749241843141,-480.0,0.00027397,5]
[364784722,1749241843151,-480.0,0.00027397,5]
[364784723,1749241843160,-480.0,0.00027397,5]
[364784724,1749241843170,-599.88,0.00027397,5]
[364784725,1749241843179,-480.0,0.00027397,5]
[364784726,1749241843190,-7399.63,0.00027397,5]
[364784727,1749241843199,-765.24,0.00027397,5]
[364784728,1749241843208,-480.0,0.00027397,5]
[364784729,1749241843217,-480.0,0.00027397,5]
[364784730,1749241843227,-57460.09,0.00027397,5]
[364784731,1749241843236,-480.0,0.00027397,5]
[364784732,1749241843246,-703.27,0.00027397,5]
[364784733,1749241843255,-480.0,0.00027397,5]
[364784734,1749241843264,-480.0,0.00027397,5]
[364784735,1749241843273,-506.06873661,0.00027397,5]
[364784736,1749241843283,-4676.37,0.00027397,5]
[364784737,1749241843292,-480.0,0.00027397,5]
[364784738,1749241843302,-480.0,0.00027397,5]
[364784739,1749241843311,-485.31481093,0.00027397,5]
[364784740,1749241843321,-2938.32,0.00027397,5]
[364784741,1749241843330,-1379.45,0.00027397,5]
[364784742,1749241843339,-7478.95,0.00027397,5]
[364784743,1749241843348,-487.91355193,0.00027397,5]
[364784744,1749241843358,-755.4,0.00027397,5]
[364784745,1749241843367,-480.0,0.00027397,5]
[364784746,1749241843377,-607.62,0.00027397,5]
[364784747,1749241843386,-480.0,0.00027397,5]
[364784748,1749241843396,-480.0,0.00027397,5]
[364784749,1749241843406,-480.0,0.00027397,5]
[364784750,1749241843416,-480.0,0.00027397,5]
[364784751,1749241843425,-154.75414649,0.00027397,5]
[364784752,1749241843436,-3373.75,0.00027397,5]
[364784753,1749241843446,-1091.95,0.00027397,5]
[364784754,1749241843456,-480.0,0.00027397,5]
[364784755,1749241843465,-1260.18,0.00027397,5]
[364784756,1749241843475,-949.92,0.00027397,5]
[364784757,1749241843485,-9118.0,0.00027397,5]
[364784758,1749241843495,-480.0,0.00027397,5]
[364784759,1749241843504,-597.4,0.00027397,5]
[364784760,1749241843514,-520.51,0.00027397,5]
[364784761,1749241843523,-480.0,0.00027397,5]
[364784762,1749241843534,-1073.19,0.00027397,5]
[364784763,1749241843543,-1500.48,0.00027397,5]
[364784764,1749241843552,-480.0,0.00027397,5]
[364784765,1749241843562,-480.0,0.00027397,5]
[364784766,1749241843572,-2617.35,0.00027397,5]
[364784767,1749241843581,-1091.83,0.00027397,5]
[364784768,1749241843590,-1000.0,0.00027397,5]
[364784769,1749241843600,-1000.0,0.00027397,2]
[364784770,1749241843609,-480.0,0.00027397,5]
[364784771,1749241843618,-480.0,0.00027397,5]
[364784772,1749241843628,-480.0,0.00027397,5]
[364784773,1749241843637,-2954.48,0.00027397,5]
[364784774,1749241843646,-480.0,0.00027397,5]
[364784775,1749241843656,-480.0,0.00027397,5]
[364784776,1749241843665,-676.46,0.00027397,5]
[364784777,1749241843675,-480.0,0.00027397,5]
[364784778,1749241843684,-480.0,0.00027397,5]
[364784779,1749241843694,-1100.1,0.00027397,5]
[364784780,1749241843703,-774.3,0.00027397,5]
[364784781,1749241843713,-476.29895915,0.00027397,5]
[364784782,1749241843722,-909.08,0.00027397,5]
[364784783,1749241843731,-480.0,0.00027397,5]
[364784784,1749241843740,-500.0,0.00027397,5]
[364784785,1749241843748,-480.0,0.00027397,5]
[364784786,1749241843757,-480.0,0.00027397,5]
[364784787,1749241843772,-480.0,0.00027397,5]
[364784788,1749241843782,-771.25,0.00027397,5]
[364784789,1749241843792,-1341.13,0.00027397,5]
[364784790,1749241843801,-480.0,0.00027397,5]
[364784791,1749241843811,-480.0,0.00027397,5]
[364784792,1749241843821,-480.0,0.00027397,5]
[364784793,1749241843830,-1674.49,0.00027397,5]
[364784794,1749241843840,-480.0,0.00027397,5]
[364784795,1749241843850,-480.0,0.00027397,5]
[364784796,1749241843859,-480.0,0.00027397,5]
[364784797,1749241843869,-2363.43,0.00027397,5]
[364784798,1749241843878,-480.0,0.00027397,5]
[364784799,1749241843887,-480.0,0.00027397,5]